bitfinex-derivatives/quotes_ETHF0:USTF0_20250807
["timestamp","ask_amount","ask_price","bid_price","bid_amount"]
[1754583857465,18.105,3826.8,3826.6,2.09514]
[1754583857668,18.4037,3826.8,3826.7,1.5726]
[1754583857865,18.5938,3826.8,3826.7,1.5726]
[1754583858062,19.0694,3826.8,3826.7,1.5726]
[1754583858461,18.105,3826.8,3826.7,1.5726]
[1754583859365,18.2951,3826.8,3826.7,1.5726]
[1754583859566,18.105,3827.1,3827.0,0.6493]
[1754583859760,18.8767,3827.1,3827.0,2.09509]
[1754583859966,19.5106,3827.1,3827.0,2.09509]
[1754583860167,19.809,3827.1,3827.0,2.09509]
[1754583860672,18.34263505,3827.1,3827.0,2.09509]
[1754583860880,0.23763505,3827.1,3827.0,2.09509]
[1754583861072,0.2987,3827.4,3827.2,1.17176]
[1754583861073,18.7707,3827.3,3827.2,1.17176]
[1754583861372,20.04663505,3827.3,3827.2,1.88486]
[1754583862469,20.04663505,3827.3,3826.7,2.61264]
[1754583862470,1.704,3827.2,3827.1,0.52247]
[1754583862670,1.94163505,3827.2,3827.1,0.52247]
[1754583863075,0.6657,3827.1,3827.0,0.52248]
[1754583863374,1.704,3827.1,3827.0,0.52248]
[1754583863874,1.704,3827.1,3827.0,0.71178]
[1754583864068,1.704,3827.1,3827.0,1.01318]
[1754583864266,0.4756,3827.3,3827.2,0.6493]
[1754583864464,2.32063458,3827.9,3827.8,1.88478]
[1754583864670,0.9644,3827.9,3827.8,2.09558]
[1754583864967,1.4056,3827.9,3827.8,2.09558]
[1754583865373,1.704,3827.9,3827.8,2.09558]
[1754583867474,1.4056,3827.9,3827.8,2.09558]
[1754583868573,1.704,3827.9,3827.8,2.09558]
[1754583869676,0.4911,3827.9,3827.8,2.09558]
[1754583869973,0.9644,3828.8,3828.7,0.52226]
[1754583870175,1.9644,3829.0,3828.9,1.47293]
[1754583870374,1.0,3829.0,3828.9,2.09543]
[1754583872970,1.9644,3829.0,3828.9,2.09543]
[1754583873572,1.0,3829.0,3828.9,2.09543]
[1754583874872,1.2987,3829.0,3828.9,2.09543]
[1754583875073,1.4888,3829.0,3828.9,2.09543]
[1754583876174,1.0,3829.0,3828.9,2.09543]
[1754583876870,18.7785,3829.8,3829.7,1.68362]
[1754583877076,1.704,3829.8,3829.7,2.09532]
[1754583877271,18.61906,3830.2,3829.5,0.6225]
[1754583877272,0.6657,3830.2,3829.5,0.6225]
[1754583877473,2.22608,3830.1,3829.5,0.6225]
[1754583877679,1.704,3830.0,3829.9,0.52209]
[1754583879181,2.22609,3829.9,3829.8,0.5221]
[1754583879382,1.704,3829.9,3829.8,0.5221]
[1754583880782,1.704,3829.9,3829.8,1.3822]
[1754583880987,1.704,3829.9,3829.8,1.7939]
[1754583881181,1.704,3829.9,3829.8,1.5831]
[1754583882780,1.0383,3830.9,3829.8,0.9239]
[1754583882984,1.704,3830.9,3830.8,1.17127]
[1754583883184,1.704,3830.9,3830.8,0.98837]
[1754583884386,1.704,3830.9,3830.8,1.83937]
[1754583886289,1.704,3830.9,3830.8,2.11727]
[1754583886586,19.7936,3831.2,3831.1,1.62773]
[1754583886981,19.7936,3831.2,3831.1,1.83823]
[1754583887287,19.3683,3831.2,3831.1,2.11613]
[1754583887478,0.9794,3831.7,3831.6,1.3163]
[1754583887787,1.2793,3831.7,3831.6,2.11606]
[1754583887987,1.7046,3831.7,3831.6,2.11606]
[1754583888386,1.2793,3831.7,3831.6,2.11606]
[1754583889084,1.0873,3831.7,3831.6,2.11606]
[1754583889786,1.7046,3831.9,3831.8,1.83814]
[1754583890088,1.7046,3831.9,3831.8,2.11604]
[1754583890392,1.7046,3831.9,3831.8,1.83814]
[1754583891287,1.7046,3831.9,3831.8,1.3163]
[1754583892691,1.9794,3832.0,3831.9,2.11602]
[1754583892892,1.0,3832.0,3831.9,1.83812]
[1754583893091,1.0,3832.0,3831.9,2.11602]
[1754583898696,0.3031,3832.8,3832.7,1.00281]
[1754583898895,1.2793,3832.8,3832.7,1.55791]
[1754583899094,1.7046,3832.8,3832.7,1.55791]
[1754583900503,1.7046,3832.8,3832.7,0.4411]
[1754583900799,1.7046,3832.8,3832.7,0.3744]
[1754583901302,1.7046,3832.8,3832.7,0.4411]
[1754583901488,1.7046,3832.8,3832.7,0.5478]
[1754583901687,1.7046,3832.8,3832.7,0.7583]
[1754583901897,1.7046,3832.8,3832.7,0.3744]
[1754583902098,1.7046,3832.8,3832.7,0.1855]
[1754583902598,0.52179,3832.1,3830.6,0.0667]
[1754583902796,0.6905,3831.1,3830.4,0.4516]
[1754583902995,0.6937,3830.5,3830.4,1.3163]
[1754583903298,1.7046,3830.8,3830.7,1.17619]
[1754583903502,1.7046,3830.8,3830.7,2.11619]
[1754583904101,1.4189,3830.8,3830.7,2.11619]
[1754583905001,1.7046,3831.4,3831.3,1.1948]
[1754583905996,0.192,3831.4,3831.2,0.5219]
[1754583906296,1.40432906,3832.2,3832.1,1.17599]
[1754583906297,0.6905,3832.2,3832.1,1.17599]
[1754583906502,1.7046,3832.2,3832.1,1.90549]
[1754583906703,1.7046,3832.2,3832.1,0.52179]
[1754583907098,1.7046,3832.1,3832.0,0.5218]
[1754583908101,0.67557837,3832.4,3832.0,0.5218]
[1754583908302,1.7046,3832.3,3832.2,0.52178]
[1754583908608,1.7046,3832.3,3832.2,1.26498]
[1754583908800,1.7046,3832.3,3832.2,1.90548]
[1754583909000,1.7046,3832.3,3832.2,1.26498]
[1754583909505,1.7046,3832.3,3832.2,1.71658]
[1754583909694,1.7046,3832.3,3832.2,1.26498]
[1754583909695,1.2793,3832.3,3832.2,1.26498]
[1754583909900,1.7046,3832.3,3832.2,1.71658]
[1754583910096,1.4189,3832.3,3832.2,1.71658]
[1754583910299,1.65177837,3832.9,3832.8,0.5217]
[1754583910500,1.65177837,3832.9,3832.8,1.7165]
[1754583910800,2.38017837,3832.9,3832.8,1.7165]
[1754583911004,2.38017837,3832.9,3832.8,0.5217]
[1754583911205,1.7046,3832.9,3832.8,0.5217]
[1754583911401,2.38017837,3832.9,3832.8,1.4386]
[1754583911706,2.38017837,3832.9,3832.8,2.1159]
[1754583911707,1.4189,3832.9,3832.8,2.1159]
[1754583911906,0.9936,3832.9,3832.8,2.1159]
[1754583912208,0.6937,3832.9,3832.8,2.1159]
[1754583912402,2.09447837,3832.9,3832.8,2.1159]
[1754583912602,2.38017837,3832.9,3832.8,2.1159]
[1754583912801,1.36607837,3832.9,3831.9,1.30456]
[1754583913008,1.36607837,3832.9,3832.6,0.52173]
[1754583913009,1.6979,3832.7,3832.6,0.52173]
[1754583913206,2.37347837,3832.7,3832.6,0.52173]
[1754583913401,1.6979,3832.7,3832.6,0.52173]
[1754583913605,1.4976,3832.6,3832.5,0.71963]
[1754583913906,1.6979,3832.6,3832.5,0.71963]
[1754583914297,2.37347837,3832.6,3832.5,0.71963]
[1754583914497,0.52169,3832.9,3831.9,1.30456]
[1754583914498,0.2985,3832.3,3831.9,0.52182]
[1754583914701,0.3849,3832.0,3831.9,0.6665]
[1754583914907,0.6138,3832.4,3832.3,1.5893]
[1754583915107,0.2003,3832.4,3832.3,1.5893]
[1754583915406,0.97487837,3832.6,3832.5,1.5893]
[1754583915606,0.2993,3832.6,3832.5,1.5893]
[1754583915807,0.4839,3832.6,3832.5,1.5893]
[1754583916106,2.37347837,3832.6,3832.5,1.5893]
[1754583916308,0.4839,3832.8,3832.7,0.4686]
[1754583916509,1.15947837,3832.8,3832.7,1.5893]
[1754583917703,0.67557837,3832.8,3832.7,1.5893]
[1754583917900,0.67557837,3832.9,3832.8,0.9195]
[1754583918107,1.77567837,3833.3,3833.2,2.11094]
[1754583918409,2.37347837,3833.3,3833.2,2.11094]
[1754583919007,1.87387837,3833.7,3833.6,0.52159]
[1754583919310,2.07417837,3833.7,3833.6,0.7695]
[1754583919506,2.07417837,3833.7,3833.6,0.1979]
[1754583919711,1.2116,3833.6,3833.5,0.5216]
[1754583919908,2.37347837,3833.6,3833.5,0.7195]
[1754583920310,1.6979,3833.6,3833.5,1.7131]
[1754583920501,1.6979,3833.6,3833.5,1.9005]
[1754583920905,1.6979,3833.6,3833.5,2.1111]
[1754583921207,2.07417837,3834.0,3833.9,0.52155]
[1754583921412,1.6979,3834.0,3833.9,2.11105]
[1754583922009,1.3994,3834.0,3833.9,2.11105]
[1754583922217,1.35897837,3834.3,3834.2,0.52151]
[1754583922416,1.6979,3834.3,3834.2,1.29101]
[1754583922708,1.214,3834.3,3834.2,1.29101]
[1754583922913,1.6979,3834.3,3834.2,1.29101]
[1754583923117,1.6979,3834.3,3834.2,1.71301]
[1754583923411,1.6979,3834.3,3834.2,1.90041]
[1754583923611,0.4839,3834.3,3834.2,2.11101]
[1754583923812,0.1846,3834.3,3834.2,2.11101]
[1754583924113,0.9859,3834.6,3834.5,1.18797]
[1754583924310,1.15947837,3834.7,3834.6,1.5895]
[1754583924510,0.1846,3834.7,3834.6,1.2991]
[1754583924706,0.712,3833.8,3833.5,0.2904]
[1754583924912,1.6979,3833.4,3833.3,0.52163]
[1754583925112,1.6979,3833.4,3833.3,1.90053]
[1754583925113,0.4839,3833.4,3833.3,1.90053]
[1754583925312,0.4839,3833.4,3832.8,1.30424]
[1754583925313,1.6979,3833.7,3833.6,1.1915]
[1754583925514,1.6979,3833.7,3833.3,0.52163]
[1754583925817,1.6979,3833.4,3833.3,1.71313]
[1754583926111,1.6979,3833.4,3833.3,1.29113]
[1754583926313,0.6866,3833.0,3832.9,0.52168]
[1754583926517,1.6979,3832.9,3832.8,0.5217]
[1754583927112,1.6979,3832.9,3832.8,0.7196]
[1754583927311,1.6979,3832.9,3832.8,2.1112]
[1754583927513,1.3994,3832.9,3832.8,2.1112]
[1754583927815,0.9859,3832.9,3832.8,2.1112]
[1754583928318,1.6979,3833.2,3833.1,2.11116]
[1754583928922,1.6979,3833.2,3833.1,1.90056]
[1754583929112,1.6979,3833.2,3833.1,1.71316]
[1754583929321,1.6979,3833.2,3833.1,1.29116]
[1754583929619,1.6979,3833.2,3833.1,1.71316]
[1754583931012,1.6979,3833.2,3833.1,1.90056]
[1754583931719,1.1001,3833.5,3833.4,1.18812]
[1754583932021,1.3994,3833.5,3833.4,2.11112]
[1754583932219,1.6979,3833.5,3833.4,2.11112]
[1754583933219,0.9859,3833.5,3833.4,2.11112]
[1754583933415,1.62166,3833.8,3833.7,0.81197]
[1754583933610,1.62166,3833.8,3833.7,0.52157]
[1754583933611,1.6979,3833.8,3833.7,0.52157]
[1754583933811,1.6979,3833.8,3833.7,2.11107]
[1754583935114,1.6979,3833.8,3833.7,0.7695]
[1754583935309,0.5978,3833.5,3832.9,1.30419]
[1754583935515,1.3994,3833.0,3832.9,2.11098]
[1754583936421,0.9859,3833.0,3832.9,2.11098]
[1754583938520,0.712,3832.7,3831.9,0.52182]
[1754583938718,1.3994,3831.7,3831.6,1.42296]
[1754583938920,0.9859,3831.7,3831.6,1.90076]
[1754583939119,0.9859,3831.7,3831.6,2.11116]
[1754583939719,0.4839,3831.7,3831.6,2.11116]
[1754583940124,0.6842,3832.0,3831.9,2.11112]
[1754583940531,1.3994,3832.0,3831.9,2.11112]
[1754583940722,1.6979,3832.0,3831.9,2.11112]
[1754583940922,1.6979,3832.0,3831.9,0.52182]
[1754583941519,1.0113,3831.9,3831.8,0.52183]
[1754583941823,0.4863,3831.5,3831.4,1.2402]
[1754583942029,1.2844,3831.5,3831.4,1.2402]
[1754583942225,1.6979,3831.5,3831.4,1.76208]
[1754583942717,0.1846,3831.7,3831.6,1.82076]
[1754583943022,0.7876,3831.7,3831.6,2.11116]
[1754583943228,1.699,3832.0,3831.9,1.18512]
[1754583943620,0.962,3832.0,3831.9,1.70072]
[1754583943819,0.962,3832.0,3831.9,2.09562]
[1754583944019,1.4095,3832.0,3831.9,2.09562]
[1754583944218,1.699,3832.0,3831.9,2.09562]
[1754583944626,1.4095,3832.0,3831.9,2.09562]
[1754583945127,0.4734,3832.0,3831.9,2.09562]
[1754583946130,0.6633,3832.0,3831.9,2.09562]
[1754583946631,1.699,3832.0,3831.9,1.70072]
[1754583946830,1.699,3832.0,3831.9,0.52182]
[1754583947725,1.4095,3832.0,3831.9,2.09562]
[1754583947917,1.699,3832.0,3831.9,1.70072]
[1754583948522,1.4134,3832.0,3831.9,1.70072]
[1754583948721,0.6633,3832.0,3831.9,2.09562]
[1754583948926,1.699,3832.4,3832.3,0.52176]
[1754583949122,1.699,3832.4,3832.3,2.09556]
[1754583949627,1.699,3832.4,3832.3,1.88496]
[1754583950025,1.699,3832.4,3832.3,1.70066]
[1754583950328,1.699,3832.4,3832.3,0.52176]
[1754583951726,0.4734,3832.4,3832.3,1.00076]
[1754583952029,0.6633,3832.4,3832.3,2.09556]
[1754583952330,0.962,3832.4,3832.3,2.09556]
[1754583952530,1.699,3832.4,3832.3,1.70066]
[1754583952731,1.699,3832.4,3832.3,1.00076]
[1754583952925,1.699,3832.4,3832.3,0.52176]
[1754583953631,2.59045165,3833.3,3833.2,0.52164]
[1754583953932,1.699,3833.3,3833.2,0.52164]
[1754583954532,1.699,3833.1,3833.0,0.52166]
[1754583954726,0.6764,3832.9,3832.7,0.5217]
[1754583955030,1.699,3832.8,3832.7,0.5217]
[1754583955620,1.54431,3832.7,3832.6,0.52172]
[1754583955825,0.6764,3832.3,3832.2,0.7129]
[1754583956123,0.6764,3831.9,3831.8,2.94083]
[1754583956323,0.962,3831.9,3831.8,3.33573]
[1754583956528,0.3777,3831.9,3831.8,3.33573]
[1754583956834,1.699,3832.2,3832.1,2.09559]
[1754583957224,0.962,3832.2,3832.1,2.09559]
[1754583957418,0.8252,3832.5,3832.4,1.00075]
[1754583957619,1.699,3832.8,3832.7,2.09551]
[1754583957827,0.5751,3832.7,3832.2,1.30445]
[1754583958026,1.2515,3832.4,3832.3,0.479]
[1754583958226,1.699,3832.4,3832.3,1.00076]
[1754583958927,1.699,3832.4,3832.3,0.70726]
[1754583960333,1.699,3832.4,3832.3,0.52176]
[1754583964534,1.699,3832.4,3832.3,1.33356]
[1754583966334,1.2515,3832.4,3832.3,1.33356]
[1754583966730,0.2895,3832.4,3832.3,1.53986]
[1754583966935,1.699,3833.0,3832.9,0.52168]
[1754583967135,1.95046854,3833.0,3832.9,0.52168]
[1754583967434,1.95046854,3833.0,3832.9,1.33348]
[1754583967738,1.699,3833.0,3832.9,1.33348]
[1754583967940,1.95046854,3833.0,3832.9,0.52168]
[1754583968737,1.699,3833.0,3832.9,0.52168]
[1754583968932,1.95102438,3833.0,3832.9,0.52168]
[1754583970132,0.52168,3832.9,3832.8,0.52169]
[1754583970332,1.699,3832.5,3832.4,1.33355]
[1754583970637,1.2515,3832.5,3832.4,1.53985]
[1754583971438,0.2895,3832.5,3832.4,1.53985]
[1754583972041,0.5751,3832.5,3832.4,1.53985]
[1754583972337,0.4475,3832.8,3832.7,0.52171]
[1754583972338,1.1108,3832.8,3832.7,0.52171]
[1754583972544,1.699,3832.8,3832.7,1.33351]
[1754583973144,0.9528,3832.8,3832.7,1.53961]
[1754583973549,0.5751,3832.8,3832.7,1.53961]
[1754583973844,1.21003377,3833.1,3833.0,1.52827]
[1754583974136,0.6716,3832.3,3832.1,0.52178]
[1754583974344,1.6729,3832.2,3832.1,0.52178]
[1754583976439,1.6729,3832.2,3832.1,1.04498]
[1754583979255,1.6729,3832.2,3832.1,1.32228]
[1754583979435,1.2392,3832.2,3832.1,1.32228]
[1754583979640,0.5676,3832.2,3832.1,1.52838]
[1754583980448,0.5676,3832.7,3832.6,0.2773]
[1754583980645,0.71587505,3833.1,3833.0,0.79897]
[1754583980851,1.2392,3833.1,3833.0,1.32217]
[1754583981043,1.6729,3833.1,3833.0,1.32217]
[1754583981438,1.6729,3833.1,3833.0,0.52167]
[1754583981644,1.6729,3833.0,3832.9,0.52168]
[1754583982749,1.6729,3832.8,3832.7,0.5217]
[1754583983146,1.6729,3832.8,3832.7,1.3222]
[1754583984051,1.6729,3832.8,3832.7,0.9897]
[1754583985148,0.91211,3832.7,3832.6,0.52171]
[1754583985356,2.19464,3832.6,3832.5,0.52173]
[1754583985951,2.19464,3832.6,3832.2,0.52177]
[1754583985952,0.4763,3832.3,3832.2,0.52177]
[1754583986256,1.6729,3832.3,3832.2,0.52177]
[1754583987260,1.6729,3832.3,3832.2,1.32227]
[1754583987644,1.2392,3832.3,3832.2,1.32227]
[1754583987849,1.6729,3832.3,3832.2,1.32227]
[1754583988354,0.23942272,3832.5,3832.4,1.52835]
[1754583988558,0.7627,3833.0,3832.9,1.52828]
[1754583988862,1.1053,3833.3,3833.2,0.8005]
[1754583989256,1.6729,3833.3,3833.2,0.8005]
[1754583989766,0.23942272,3833.5,3832.3,1.30439]
[1754583990059,0.6716,3832.9,3832.8,0.7124]
[1754583990259,0.6716,3832.9,3832.8,1.3222]
[1754583990658,1.6729,3832.9,3832.8,1.3222]
[1754583990856,0.2768,3832.9,3832.8,1.5283]
[1754583991061,1.2392,3833.2,3833.1,0.98966]
[1754583991366,1.6729,3833.2,3833.1,1.32216]
[1754583992264,1.0013,3832.9,3832.8,0.5217]
[1754583992563,1.6729,3832.4,3832.3,1.32227]
[1754583993967,0.558,3832.4,3832.3,1.52837]
[1754583994166,1.2392,3832.7,3832.6,0.468]
[1754583994464,1.6729,3832.7,3832.6,1.32223]
[1754583994966,1.91232272,3833.1,3833.0,1.32217]
[1754583995165,1.6729,3833.1,3833.0,1.32217]
[1754583995763,0.7627,3833.1,3833.0,1.32217]
[1754583996061,1.2392,3833.1,3833.0,1.52827]
[1754583996267,1.2392,3833.1,3833.0,1.32217]
[1754583996462,1.6729,3833.1,3833.0,1.32217]
[1754583996665,1.2392,3833.1,3833.0,1.32217]
[1754583996859,1.2392,3833.1,3833.0,1.52827]
[1754583998469,1.6729,3833.6,3833.5,1.3221]
[1754583998669,0.5676,3833.6,3833.5,1.3221]
[1754583998867,0.5676,3833.6,3833.5,1.5282]
[1754583999067,1.2392,3833.6,3833.5,1.5282]
[1754583999270,1.2392,3833.6,3833.5,1.3221]
[1754583999572,1.6729,3833.6,3833.5,0.5216]
[1754584000262,0.52163,3833.4,3833.3,0.52162]
[1754584000467,1.6729,3833.4,3833.3,0.52162]
[1754584000873,1.6729,3833.4,3833.3,0.98962]
[1754584001072,1.6729,3833.4,3833.3,1.32212]
[1754584001773,0.5676,3833.4,3833.3,1.32212]
[1754584001974,1.2392,3833.4,3833.3,1.32212]
[1754584002471,0.9624,3833.7,3833.6,0.98959]
[1754584002673,1.2392,3833.7,3833.6,1.32209]
[1754584002873,1.6729,3833.7,3833.6,1.32209]
[1754584003268,1.184,3833.9,3833.8,1.02126]
[1754584003469,1.675,3833.9,3833.8,1.35406]
[1754584003870,1.675,3833.9,3833.8,2.59336]
[1754584005374,1.675,3833.9,3833.8,1.76086]
[1754584005772,1.675,3833.9,3833.8,1.2393]
[1754584006371,0.4918,3833.7,3833.6,0.52158]
[1754584006573,1.2022,3833.5,3833.4,1.02131]
[1754584006881,1.675,3833.5,3833.4,0.52161]
[1754584007075,1.675,3833.5,3833.4,0.82011]
[1754584007274,1.675,3833.5,3833.4,1.02131]
[1754584007580,1.675,3833.5,3833.4,1.45471]
[1754584007876,1.675,3833.5,3833.4,1.75871]
[1754584009679,1.2534,3833.5,3833.4,1.75871]
[1754584009874,0.9558,3833.5,3833.4,1.75871]
[1754584010074,0.6798,3833.5,3833.4,1.75871]
[1754584010382,0.9558,3833.8,3833.7,1.75868]
[1754584010577,0.491,3833.8,3833.7,1.75868]
[1754584010775,0.2968,3834.1,3834.0,1.75863]
[1754584011778,0.491,3834.1,3834.0,1.75863]
[1754584011980,0.9558,3834.1,3834.0,1.75863]
[1754584012174,1.675,3834.1,3834.0,1.75863]
[1754584012973,0.7616,3834.1,3834.0,1.75863]
[1754584013173,0.9558,3834.1,3834.0,1.75863]
[1754584014082,1.675,3834.1,3834.0,1.75863]
[1754584014278,1.675,3834.1,3834.0,0.06453]
[1754584014583,0.7063,3833.8,3833.7,0.9331]
[1754584014780,0.7063,3833.8,3833.7,1.2371]
[1754584014977,0.9823,3833.8,3833.7,1.2371]
[1754584015179,1.2791,3833.8,3833.7,1.2371]
[1754584015382,0.2968,3833.8,3833.7,1.75868]
[1754584015880,0.9558,3833.8,3833.7,1.75868]
[1754584016483,1.0801,3833.8,3833.7,1.75868]
[1754584016682,1.2791,3833.8,3833.7,1.75868]
[1754584016882,1.2791,3833.8,3833.7,1.02128]
[1754584017383,1.2791,3833.8,3833.7,1.45468]
[1754584018183,1.2791,3833.8,3833.7,1.75868]
[1754584018785,1.2791,3833.8,3833.7,1.45468]
[1754584019186,1.2791,3833.8,3833.7,1.75868]
[1754584020387,1.2791,3833.8,3833.7,1.45468]
[1754584021083,1.2791,3833.8,3833.7,1.75868]
[1754584021383,1.2791,3833.1,3833.0,1.75877]
[1754584021584,1.2791,3833.1,3833.0,1.45477]
[1754584021980,1.2791,3833.1,3833.0,1.02137]
[1754584022180,0.52165,3833.2,3832.2,0.4334]
[1754584022181,0.1243,3832.3,3832.2,0.4334]
[1754584022377,1.2791,3832.2,3832.1,1.45489]
[1754584023388,1.2791,3832.2,3832.1,1.75889]
[1754584023687,0.9558,3832.2,3832.1,1.75889]
[1754584023984,1.0801,3832.2,3832.1,1.75889]
[1754584024886,1.2791,3832.2,3832.1,1.45489]
[1754584025289,1.2791,3832.2,3832.1,1.75889]
[1754584025586,0.2968,3832.4,3832.3,1.2371]
[1754584025780,1.1548,3832.4,3832.3,0.9331]
[1754584025979,1.1548,3832.4,3832.2,0.52178]
[1754584025980,0.582,3832.4,3832.2,0.52178]
[1754584026185,1.2791,3832.3,3832.2,0.52178]
[1754584026996,1.2791,3832.2,3832.1,0.52179]
[1754584027292,1.2791,3832.2,3832.1,1.45489]
[1754584027582,1.2791,3832.2,3832.1,1.75889]
[1754584028090,1.2791,3832.2,3832.1,1.45489]
[1754584028386,1.80088,3832.2,3832.1,0.52179]
[1754584028586,0.5073,3831.4,3831.3,0.2985]
[1754584028891,1.0031,3831.4,3831.3,0.8204]
[1754584029078,0.4211,3831.3,3831.2,0.52191]
[1754584029285,1.2791,3831.3,3831.2,0.52191]
[1754584029678,1.2791,3831.3,3831.2,1.45501]
[1754584031491,1.2791,3831.3,3831.2,1.75901]
[1754584031686,0.9558,3831.3,3831.2,1.75901]
[1754584031882,1.0801,3831.3,3831.2,1.75901]
[1754584032286,1.2791,3831.3,3831.2,1.75901]
[1754584032686,1.1548,3831.8,3831.7,0.52185]
[1754584032895,1.2791,3831.8,3831.7,1.75895]
[1754584033192,0.9569,3831.8,3831.7,1.75895]
[1754584033395,1.0816,3831.8,3831.7,1.75895]
[1754584033585,1.2811,3831.8,3831.7,1.75895]
[1754584034093,1.2811,3831.8,3831.7,1.45495]
[1754584034894,0.9569,3831.8,3831.7,1.73055]
[1754584035083,1.2811,3831.8,3831.7,1.45495]
[1754584037891,0.491,3831.8,3831.7,1.73055]
[1754584038087,0.2968,3831.8,3831.7,1.73055]
[1754584038596,0.9505,3831.8,3831.7,1.73055]
[1754584038790,1.0752,3831.8,3831.7,1.73055]
[1754584038993,1.2747,3831.8,3831.7,1.73055]
[1754584039400,1.2747,3831.8,3831.7,1.45495]
[1754584039699,1.2747,3831.8,3831.7,1.73055]
[1754584040987,1.2711,3832.4,3832.3,0.80676]
[1754584041193,1.2711,3832.4,3832.3,1.45026]
[1754584041491,1.2711,3832.4,3832.3,1.72586]
[1754584041691,1.2711,3832.4,3832.3,0.285]
[1754584041895,0.52177,3832.3,3832.2,0.52177]
[1754584042196,1.2711,3832.3,3832.2,1.45027]
[1754584046996,1.2711,3832.7,3832.6,1.45023]
[1754584047302,1.2711,3832.7,3832.6,1.72583]
[1754584047503,0.9469,3832.7,3832.6,1.72583]
[1754584047905,1.0716,3832.7,3832.6,1.72583]
[1754584048202,1.2711,3832.7,3832.6,1.72583]
[1754584048797,0.9469,3832.7,3832.6,1.72583]
[1754584049002,1.57379461,3833.0,3832.9,1.2041]
[1754584049197,2.17529461,3833.0,3832.9,0.4767]
[1754584049402,2.17529461,3833.0,3832.9,0.9285]
[1754584049598,1.2711,3832.9,3832.8,1.45019]
[1754584049793,1.2711,3832.9,3832.8,0.80669]
[1754584050107,1.2711,3832.4,3832.3,1.72587]
[1754584051208,1.2711,3832.4,3832.3,1.45027]
[1754584051400,1.2711,3832.4,3832.3,0.285]
[1754584051602,0.2932,3832.9,3832.3,1.75622]
[1754584051801,0.6696,3832.9,3832.8,0.99839]
[1754584052003,1.0716,3832.9,3832.8,1.72579]
[1754584052204,0.9469,3833.1,3833.0,0.99837]
[1754584052404,0.4818,3833.1,3833.0,1.27397]
[1754584052611,0.1886,3833.1,3833.0,1.27397]
[1754584052909,0.6696,3833.3,3833.2,0.99834]
[1754584053105,1.07851422,3833.6,3833.5,0.5216]
[1754584053298,0.9469,3833.6,3833.5,1.7257]
[1754584054411,0.8532,3833.9,3833.8,0.99826]
[1754584054710,1.2711,3833.9,3833.8,1.45006]
[1754584055209,1.2711,3833.9,3833.8,0.9285]
[1754584055610,0.6952,3833.8,3833.7,0.52157]
[1754584055811,1.2711,3833.8,3833.7,0.52157]
[1754584056108,0.1886,3833.5,3833.4,0.99832]
[1754584056307,0.9469,3833.5,3833.4,1.72572]
[1754584059514,0.2932,3833.5,3833.4,1.72572]
[1754584060214,0.9469,3833.8,3833.7,1.72568]
[1754584060415,1.1464,3833.8,3833.7,0.80658]
[1754584060618,1.2711,3833.8,3833.7,1.25838]
[1754584061009,1.2711,3833.8,3833.7,0.80658]
[1754584061210,1.2711,3833.8,3833.7,1.45008]
[1754584061518,1.0825,3833.7,3833.6,0.52158]
[1754584061711,1.2711,3833.7,3833.6,0.52158]
[1754584062417,1.2711,3833.7,3833.6,0.80658]
[1754584062915,1.2711,3833.7,3833.6,1.22498]
[1754584063717,1.2711,3833.7,3833.6,0.52158]
[1754584063917,1.10559,3833.6,3833.4,0.52161]
[1754584064112,1.2871,3833.5,3833.4,1.22941]
[1754584064611,1.2871,3833.5,3833.4,1.41981]
[1754584065012,1.2871,3833.5,3833.4,1.70421]
[1754584065211,0.9652,3833.5,3833.4,1.70421]
[1754584065614,1.089,3833.5,3833.4,1.70421]
[1754584065808,0.9652,3833.5,3833.4,1.70421]
[1754584067312,0.9652,3834.0,3833.9,1.70415]
[1754584067717,1.2871,3834.0,3833.9,1.70415]
[1754584070915,1.2871,3834.0,3833.9,1.41975]
[1754584071316,1.2871,3834.0,3833.9,1.70415]
[1754584073322,1.089,3834.0,3833.9,1.70415]
[1754584073625,0.9652,3834.0,3833.9,1.70415]
[1754584074515,1.2871,3834.4,3834.3,1.70409]
[1754584074722,1.089,3834.4,3834.3,1.70409]
[1754584074922,0.9652,3834.4,3834.3,1.70409]
[1754584077924,1.089,3834.4,3834.3,1.70409]
[1754584083527,1.2871,3834.4,3834.3,1.70409]
[1754584083827,1.2871,3834.4,3834.3,1.28569]
[1754584084030,1.2871,3834.4,3834.3,0.81089]
[1754584084226,1.2871,3834.4,3834.3,1.41969]
[1754584085731,1.2871,3834.4,3834.3,1.70409]
[1754584089634,1.089,3834.4,3834.3,1.70409]
[1754584090232,0.7876,3834.7,3834.6,1.28565]
[1754584090430,0.3859,3834.7,3834.6,1.70405]
[1754584090833,0.9652,3834.7,3834.6,1.70405]
[1754584091331,0.5437,3835.0,3834.9,1.00121]
[1754584091532,0.5437,3835.0,3834.9,1.70401]
[1754584091533,1.832,3835.0,3834.9,1.70401]
[1754584091934,1.5089,3835.0,3834.9,1.70401]
[1754584092233,1.0435,3835.0,3834.9,1.70401]
[1754584093128,0.5437,3835.0,3834.9,1.70401]
[1754584093733,1.8455,3835.0,3834.9,1.70401]
[1754584094239,1.6458,3835.0,3834.9,1.70401]